lending/lending_fUSD_20251114
["ID","MTS","AMOUNT","RATE_DAILY","PERIOD"]
[393931226,1763103564350,629.94005707,0.00041093,30]
[393931227,1763103565839,-173.41745945,0.00016744,2]
[393931228,1763103567355,-331.0684328,0.00016744,2]
[393931229,1763103569176,-169.24567618,0.00016744,2]
[393931230,1763103571774,-459.50637106,0.00016744,2]
[393931231,1763103573772,381.8353,0.000166,2]
[393931232,1763103574333,187.40239261,0.00016673,2]
[393931233,1763103574409,224.86764211,0.000167,2]
[393931234,1763103574844,-269.87787515,0.00016744,2]
[393931235,1763103579355,-528.27782601,0.00016744,2]
[393931236,1763103580366,500.0,0.00016743,2]
[393931237,1763103582196,-366.94052769,0.00016744,2]
[393931238,1763103585532,-242.93031742,0.00016744,2]
[393931239,1763103589074,-151.12427085,0.00016744,2]
[393931240,1763103591998,-440.20252509,0.00016744,2]
[393931241,1763103594172,-210.33303172,0.00016744,2]
[393931242,1763103597981,-402.05463079,0.00016744,2]
[393931243,1763103601248,-366.42155809,0.00016744,2]
[393931244,1763103601361,300.0,0.00016743,2]
[393931245,1763103602002,550.0,0.00016743,2]
[393931246,1763103602054,2473.23,7.976e-05,2]
[393931247,1763103602257,2473.23,8.396e-05,2]
[393931248,1763103602466,2473.23,8.816e-05,2]
[393931249,1763103602679,1230.32,9.235e-05,2]
[393931250,1763103602704,1242.91,9.235e-05,2]
[393931251,1763103602907,2473.23,9.655e-05,2]
[393931252,1763103603128,2473.23,0.00010075,2]
[393931253,1763103603311,-308.25801285,0.00016744,2]
[393931254,1763103603342,2473.23,0.00010495,2]
[393931255,1763103603549,1337.41,0.00010914,2]
[393931256,1763103603574,1135.82,0.00010914,2]
[393931257,1763103603779,2473.23,0.00011334,2]
[393931258,1763103604195,2473.23,0.00011754,2]
[393931259,1763103604415,2473.23,0.00012174,2]
[393931260,1763103604638,1444.5,0.00012594,2]
[393931261,1763103604664,1028.73,0.00012594,2]
[393931262,1763103605060,2473.23,0.00013013,2]
[393931263,1763103605270,2473.23,0.00013433,2]
[393931264,1763103605473,2473.23,0.00013853,2]
[393931265,1763103605697,1551.59,0.00014273,2]
[393931266,1763103605724,921.64,0.00014273,2]
[393931267,1763103605902,2473.23,0.00014692,2]
[393931268,1763103607529,-2473.23,0.00015112,2]
[393931269,1763103607559,-2473.23,0.00015532,2]
[393931270,1763103610817,-2473.23,0.00015952,2]
[393931271,1763103610847,-771.67,0.00016734,2]
[393931272,1763103610877,-771.67,0.00016734,2]
[393931273,1763103612706,-424.22290232,0.00016734,2]
[393931275,1763103621035,590.5761654,0.00041093,30]
[393931276,1763103621650,-174.00283522,0.00015934,2]
[393931277,1763103623521,-218.28875001,0.00015934,2]
[393931279,1763103632653,500.0,0.00041093,30]
[393931280,1763103632900,500.0,0.00041093,30]
[393931281,1763103633183,500.0,0.00041093,30]
[393931282,1763103633468,500.0,0.00041093,30]
[393931283,1763103633708,391.78268854,0.00041093,30]
[393931284,1763103634858,-197.4840994,0.00015917,2]
[393931287,1763103635794,-3022.5859006,0.00015917,2]
[393931291,1763103651562,599.38140352,0.00041093,30]
[393931292,1763103651601,-159.31841477,0.00015934,2]
[393931293,1763103665779,150.0,0.0001589,2]
[393931294,1763103666007,150.0,0.0001589,120]
[393931295,1763103668302,294.979456,7.945e-05,2]
[393931296,1763103679329,259.0,0.00041093,30]
[393931297,1763103696104,-1712.497652,0.00016549,2]
[393931298,1763103696132,-195.0,0.00016597,2]
[393931299,1763103696159,-2500.0,0.00016644,2]
[393931300,1763103696186,-158.85057499,0.00016673,2]
[393931301,1763103696212,-160.15710223,0.00016734,2]
[393931302,1763103696239,-151.0,0.00016734,2]
[393931303,1763103696265,-160.15710223,0.00016734,2]
[393931304,1763103696291,-163.63,0.00016734,2]
[393931305,1763103696317,-300.0,0.00016743,2]
[393931306,1763103696346,-1562.11839789,0.00016743,2]
[393931307,1763103696373,-500.0,0.00016744,2]
[393931308,1763103696400,-510.17377737,0.00016744,2]
[393931310,1763103769088,150.0,0.00041093,30]
[393931311,1763103811622,-338.1722733,0.00016644,2]
[393931312,1763103815155,-364.96162129,0.00016644,2]
[393931313,1763103816703,-259.90131589,0.00016644,2]
[393931314,1763103819028,-36.96478952,0.00016644,2]
[393931315,1763103819058,-447.15160276,0.00016644,2]
[393931316,1763103819117,361.51512533,0.00041093,120]
[393931317,1763103821901,-151.0,0.00016644,2]
[393931318,1763103823830,-228.97651632,0.00016644,2]
[393931319,1763103825998,-157.81361727,0.00016644,2]
[393931320,1763103828964,-10000.01,0.00016644,2]
[393931321,1763103829094,-10000.01,0.00016644,2]
[393931322,1763103829221,-10000.01,0.00016644,2]
[393931323,1763103829360,-2182.28716365,0.00016644,2]
[393931324,1763103829390,-2500.0,0.00016644,2]
[393931325,1763103829452,-635.4356727,0.00016683,2]
[393931326,1763103832016,-81.11104987,0.00016683,2]
[393931327,1763103832046,-4577.71681089,0.00016684,2]
[393931329,1763103949835,-276.59540325,0.00015915,2]
[393931330,1763103958887,500.0,0.00041093,30]
[393931331,1763103959120,500.0,0.00041093,30]
[393931332,1763103959383,506.26680153,0.00041093,30]
[393931333,1763103967619,276.595403,7.945e-05,2]
[393931334,1763103971128,500.0,0.00041093,30]
[393931335,1763103971503,500.0,0.00041093,30]
[393931336,1763103971657,500.0,0.00041093,30]
[393931337,1763103971924,500.0,0.00041093,30]
[393931338,1763103972161,500.0,0.00041093,30]
[393931339,1763103972440,500.0,0.00041093,30]
[393931340,1763103980346,-101.89459675,0.00015915,2]
[393931341,1763103980368,-66.14715344,0.000162,2]
[393931342,1763104009830,-332.07530258,0.00015873,2]
[393931343,1763104024768,-166.14697019,0.00015793,2]
[393931344,1763104027654,-225.97,0.00015793,2]
[393931345,1763104028356,-9723.414597,0.00015793,2]
[393931346,1763104030010,-210.47640829,0.00015793,2]
[393931347,1763104032455,-171.37172818,0.00015793,2]
[393931348,1763104034424,-493.74978166,0.00015793,2]
[393931349,1763104034449,-9012.51043668,0.00015793,2]
[393931350,1763104034794,-171.99469742,0.00015873,2]
[393931352,1763104101050,-170.37502519,0.00015849,2]
[393931353,1763104103216,-165.06162252,0.00015849,2]
[393931354,1763104105437,-189.90286759,0.00015793,2]
[393931355,1763104107588,-250.0,0.00015793,2]
[393931356,1763104115995,-208.02132758,0.00015793,2]
[393931357,1763104116026,-133.25242164,0.00015849,2]
[393931382,1763104153316,700.0,0.00041093,30]
[393931383,1763104172139,-141.31093065,0.00015849,2]
[393931384,1763104172159,-83.85284656,0.000162,2]
[393931385,1763104215155,3171.75,0.00015855,2]
[393931386,1763104219759,-393.95915316,0.000163,2]
[393931387,1763104221374,-338.30608802,0.000163,2]
[393931388,1763104224151,-193.38639401,0.000163,2]
[393931389,1763104227079,-227.4550546,0.000163,2]
[393931390,1763104231561,-286.2264369,0.000163,2]
[393931397,1763104231953,-2347.57997672,0.000163,2]
[393931398,1763104231964,-441.68914908,0.000163,2]
[393931399,1763104231989,-2403.59045263,0.000163,2]
[393931400,1763104232000,-150.0,0.00016425,2]
[393931401,1763104232010,-156.66,0.00016626,2]
[393931402,1763104232021,-1200.0,0.00016643,2]
[393931403,1763104232031,-280.1941,0.00016644,2]
[393931404,1763104232040,-1000.0,0.00016644,2]
[393931405,1763104232049,-6323.2258,0.00016644,2]
[393931406,1763104232059,-2500.0,0.00016644,2]
[393931407,1763104232068,-150.0,0.0001665,2]
[393931408,1763104232078,-4119.94512981,0.00016673,2]
[393931409,1763104232087,-550.0,0.00016683,2]
[393931410,1763104232096,-4013.85620349,0.00016684,2]
[393931411,1763104232106,-163.63,0.00016734,2]
[393931412,1763104232117,-312.36,0.00016743,2]
[393931413,1763104232130,-500.0,0.00016743,2]
[393931414,1763104232139,-500.0,0.00016743,2]
[393931415,1763104232148,-500.0,0.00016743,2]
[393931416,1763104232159,-500.0,0.00016743,2]
[393931417,1763104232169,-500.0,0.00016743,2]
[393931418,1763104232179,-500.0,0.00016743,2]
[393931420,1763104232188,-500.0,0.00016743,2]
[393931422,1763104232199,-304.29735,0.00016743,2]
[393931424,1763104232208,-500.0,0.00016743,2]
[393931426,1763104232219,-500.0,0.00016743,2]
[393931428,1763104232228,-500.0,0.00016743,2]
[393931430,1763104232238,-500.0,0.00016743,2]
[393931432,1763104232248,-500.0,0.00016743,2]
[393931434,1763104232257,-500.0,0.00016743,2]
[393931436,1763104232271,-500.0,0.00016743,2]
[393931438,1763104232282,-197.36930317,0.00016743,2]
[393931440,1763104232292,-500.0,0.00016743,2]
[393931442,1763104232301,-500.0,0.00016743,2]
[393931444,1763104232312,-500.0,0.00016743,2]
[393931446,1763104232322,-478.83246715,0.00016743,2]
[393931449,1763104232331,-500.0,0.00016743,2]
[393931451,1763104232341,-500.0,0.00016743,2]
[393931454,1763104232351,-506.31193346,0.00016744,2]
[393931457,1763104232362,-509.11266745,0.00016744,2]
[393931460,1763104232377,-455.6375588,0.00016744,2]
[393931464,1763104232387,-500.0,0.00016744,2]
[393931468,1763104232397,-500.0,0.00016744,2]
[393931471,1763104232406,-561.46292857,0.00016744,2]
[393931473,1763104232416,-500.0,0.00016744,2]
[393931475,1763104232427,-500.0,0.00016744,2]
[393931477,1763104232437,-620.37671526,0.00016744,2]
[393931479,1763104232446,-500.0,0.00016744,2]
[393931481,1763104232456,-500.0,0.00016744,2]
[393931483,1763104232466,-151.0,0.00016744,2]
[393931485,1763104232475,-151.0,0.00016744,2]
[393931487,1763104232485,-510.01679009,0.00016744,2]
[393931489,1763104232495,-500.0,0.00016744,2]
[393931491,1763104232504,-445.99920222,0.00016744,2]
[393931493,1763104232517,-510.43815614,0.00016744,2]
[393931495,1763104232526,-410398.23515621,0.00016744,2]
[393931497,1763104232536,-500.0,0.00016773,2]
[393931499,1763104232546,-500.0,0.00016773,2]
[393931502,1763104232559,-500.0,0.00016773,2]
[393931504,1763104232568,-500.0,0.00016773,2]
[393931506,1763104232578,-500.0,0.00016773,2]
[393931508,1763104232587,-500.0,0.00016773,2]
[393931510,1763104232597,-588.90929698,0.00016773,2]
[393931512,1763104232606,-361.08651563,0.00016773,2]
[393931514,1763104232615,-595.12558034,0.00016773,2]
[393931516,1763104232625,-503.4606776,0.00016773,2]
[393931518,1763104232635,-500.0,0.00016773,2]
[393931520,1763104232644,-502.86317958,0.00016773,2]
[393931522,1763104232653,-1759.1764089,0.00016784,2]
[393931524,1763104232663,-500.0,0.00016784,2]
[393931526,1763104232672,-323.42596046,0.00016784,2]
[393931528,1763104232681,-344.33746624,0.00016784,2]
[393931530,1763104232691,-299.50549987,0.00016784,2]
[393931532,1763104232700,-500.0,0.00016784,2]
[393931534,1763104232709,-6100.63,0.00016785,2]
[393931536,1763104232718,-9999.99,0.00016785,2]
[393931538,1763104232728,-150.99,0.00016785,2]
[393931540,1763104232737,-9999.99,0.00016785,2]
[393931543,1763104232750,-1429.42,0.00016785,2]
[393931545,1763104232759,-950.26,0.00016785,2]
[393931547,1763104232771,-999.99,0.00016785,2]
[393931549,1763104232781,-1169.35,0.00016788,2]
[393931551,1763104232790,-3241.05,0.00016788,2]
[393931553,1763104232800,-4119.94512979,0.00016809,2]
[393931555,1763104232809,-4013.85620341,0.00016819,2]
[393931557,1763104232820,-237.55,0.00016839,2]
[393931559,1763104232830,-299.99,0.00016839,4]
[393931561,1763104232840,-3787.24,0.00016839,2]
[393931563,1763104232849,-4128.42,0.00016839,2]
[393931565,1763104232859,-3366.8,0.00016839,2]
[393931567,1763104232868,-405.74393,0.00016843,2]
[393931569,1763104232878,-626.97838224,0.00016858,2]
[393931571,1763104232887,-150.0,0.00016875,2]
[393931574,1763104232896,-1000.0,0.00016886,2]
[393931576,1763104232907,-157.36092978,0.00016898,2]
[393931578,1763104232916,-500.0,0.00016898,2]
[393931580,1763104232926,-500.0,0.00016898,2]
[393931582,1763104232935,-421.960617,0.00016898,2]
[393931584,1763104232945,-500.0,0.00016898,2]
[393931586,1763104232958,-525.0,0.00016898,2]
[393931588,1763104232967,-599.0,0.00016898,2]
[393931590,1763104232977,-1000.0,0.000169,6]
[393931592,1763104232989,-160.0,0.00016925,2]
[393931595,1763104232999,-595.17380172,0.00016925,2]
[393931597,1763104233008,-525.0,0.00016925,2]
[393931599,1763104233021,-599.0,0.00016925,2]
[393931601,1763104233031,-150.0,0.00016932,2]
[393931603,1763104233040,-500.0,0.00016932,2]
[393931605,1763104233050,-500.0,0.00016932,2]
[393931607,1763104233060,-150.0,0.00016932,2]
[393931609,1763104233069,-500.0,0.00016932,2]
[393931611,1763104233078,-150.0,0.00016932,2]
[393931613,1763104233088,-500.0,0.00016932,2]
[393931615,1763104233097,-500.0,0.00016932,2]
[393931617,1763104233107,-150.0,0.00016932,2]
[393931619,1763104233117,-500.0,0.00016932,2]
[393931621,1763104233129,-150.0,0.00016932,2]
[393931623,1763104233139,-4119.94512979,0.00016946,2]
[393931625,1763104233148,-525.0,0.00016953,2]
[393931627,1763104233164,-599.0,0.00016953,2]
[393931629,1763104233174,-4013.85620341,0.00016954,2]
[393931632,1763104233183,-204.47724072,0.00016959,2]
[393931634,1763104233193,-500.0,0.00016959,2]
[393931636,1763104233203,-500.0,0.00016959,2]
[393931638,1763104233212,-500.0,0.00016959,2]
[393931640,1763104233222,-500.0,0.00016959,2]
[393931642,1763104233231,-500.0,0.00016959,2]
[393931644,1763104233241,-500.0,0.00016959,2]
[393931646,1763104233251,-150.0,0.00016973,2]
[393931648,1763104233260,-500.0,0.00016973,2]
[393931650,1763104233273,-500.0,0.00016973,2]
[393931652,1763104233282,-500.0,0.00016973,2]
[393931654,1763104233292,-686.0,0.00016973,2]
[393931656,1763104233301,-150.0,0.00016973,2]
[393931658,1763104233310,-500.0,0.00016973,2]
[393931660,1763104233320,-1860.0,0.00016973,2]
[393931662,1763104233330,-500.0,0.00016975,2]
[393931664,1763104233339,-500.0,0.00016975,2]
[393931666,1763104233349,-156.16038187,0.00016975,2]
[393931668,1763104233358,-500.0,0.00016975,2]
[393931670,1763104233367,-500.0,0.00016975,2]
[393931672,1763104233376,-500.0,0.00016975,2]
[393931674,1763104233386,-150.0,0.00016975,2]
[393931675,1763104233395,-500.0,0.00016975,2]
[393931678,1763104233405,-500.0,0.00016975,2]
[393931680,1763104233415,-150.0,0.00016975,2]
[393931682,1763104233424,-500.0,0.00016975,2]
[393931684,1763104233433,-500.0,0.00016975,2]
[393931686,1763104233443,-500.0,0.00016975,2]
[393931688,1763104233452,-500.0,0.00016975,2]
[393931689,1763104233462,-150.0,0.00016975,2]
[393931692,1763104233471,-578.0,0.00016975,2]
[393931694,1763104233481,-500.0,0.00016975,2]
[393931696,1763104233490,-150.0,0.00016975,2]
[393931698,1763104233499,-500.0,0.00016975,2]
[393931700,1763104233508,-150.0,0.00016975,2]
[393931702,1763104233521,-500.0,0.00016975,2]
[393931703,1763104233530,-500.0,0.00016975,2]
[393931706,1763104233540,-500.0,0.00016975,2]
[393931708,1763104233549,-500.0,0.00016975,2]
[393931709,1763104233558,-500.0,0.00016975,2]
[393931711,1763104233568,-500.0,0.00016975,2]
[393931714,1763104233577,-500.0,0.00016975,2]
[393931716,1763104233586,-500.0,0.00016975,2]
[393931717,1763104233595,-500.0,0.00016975,2]
[393931718,1763104233605,-500.0,0.00016975,2]
[393931719,1763104233614,-205.18214532,0.00016975,2]
[393931720,1763104233623,-500.0,0.00016975,2]
[393931721,1763104233633,-150.0,0.00016975,2]
[393931722,1763104233643,-500.0,0.00016975,2]
[393931723,1763104233653,-525.0,0.0001698,2]
[393931724,1763104233662,-599.0,0.0001698,2]
[393931725,1763104233671,-87695.65,0.00016986,2]
[393931726,1763104233680,-500.0,0.00016986,2]
[393931727,1763104233689,-500.0,0.00016987,2]
[393931728,1763104233699,-583.54036981,0.00016987,2]
[393931729,1763104233709,-500.0,0.00016987,2]
[393931730,1763104233718,-367.04874212,0.00016987,2]
[393931731,1763104233728,-500.0,0.00016987,2]
[393931732,1763104233738,-574.79698684,0.00016987,2]
[393931733,1763104233749,-43735.34229091,0.00017,2]
[393931734,1763104233758,-2300.00000007,0.00017,2]
[393931735,1763104233771,-250.0,0.00017,2]
[393931736,1763104233780,-151.0,0.00017,2]
[393931737,1763104233790,-162.83174128,0.00017,2]
[393931738,1763104233800,-152.81054111,0.00017,2]
[393931739,1763104233810,-500.0,0.00017,2]
[393931740,1763104233819,-500.0,0.00017,2]
[393931741,1763104233828,-500.0,0.00017,2]
[393931742,1763104233838,-686.0,0.00017,2]
[393931743,1763104233847,-150.0,0.00017,2]
[393931744,1763104233856,-500.0,0.00017,2]
[393931745,1763104233865,-1860.0,0.00017,2]
[393931746,1763104233874,-500.0,0.00017002,2]
[393931747,1763104233883,-500.0,0.00017002,2]
[393931748,1763104233893,-500.0,0.00017002,2]
[393931749,1763104233902,-500.0,0.00017002,2]
[393931750,1763104233912,-500.0,0.00017002,2]
[393931751,1763104233922,-150.0,0.00017002,2]
[393931752,1763104233931,-500.0,0.00017002,2]
[393931753,1763104233940,-500.0,0.00017002,2]
[393931754,1763104233949,-150.0,0.00017002,2]
[393931755,1763104233959,-500.0,0.00017002,2]
[393931756,1763104233968,-558.33472953,0.00017002,2]
[393931757,1763104233978,-500.0,0.00017002,2]
[393931758,1763104233987,-500.0,0.00017002,2]
[393931759,1763104233996,-150.0,0.00017002,2]
[393931760,1763104234005,-578.0,0.00017002,2]
[393931761,1763104234016,-500.0,0.00017002,2]
[393931762,1763104234025,-150.0,0.00017002,2]
[393931763,1763104234035,-500.0,0.00017002,2]
[393931764,1763104234045,-150.0,0.00017002,2]
[393931765,1763104234054,-500.0,0.00017002,2]
[393931766,1763104234063,-150.0,0.00017002,2]
[393931767,1763104234072,-500.0,0.00017002,2]
[393931768,1763104234081,-525.0,0.00017008,2]
[393931769,1763104234090,-599.0,0.00017008,2]
[393931770,1763104234100,-500.0,0.00017014,2]
[393931771,1763104234109,-500.0,0.00017014,2]
[393931772,1763104234120,-500.0,0.00017014,2]
[393931773,1763104234134,-312.36,0.00017017,2]
[393931774,1763104234143,-500.0,0.00017028,2]
[393931775,1763104234152,-500.0,0.00017028,2]
[393931776,1763104234163,-500.0,0.00017028,2]
[393931777,1763104234172,-686.0,0.00017028,2]
[393931778,1763104234182,-150.0,0.00017028,2]
[393931779,1763104234191,-500.0,0.00017028,2]
[393931780,1763104234202,-1860.0,0.00017028,2]
[393931781,1763104234211,-155.74859708,0.0001703,2]
[393931782,1763104234221,-301.06611084,0.0001703,2]
[393931783,1763104234230,-500.0,0.0001703,2]
[393931784,1763104234240,-617.04592018,0.0001703,2]
[393931785,1763104234249,-500.0,0.0001703,2]
[393931786,1763104234259,-150.0,0.0001703,2]
[393931787,1763104234269,-500.0,0.0001703,2]
[393931788,1763104234278,-500.0,0.0001703,2]
[393931789,1763104234288,-150.0,0.0001703,2]
[393931790,1763104234297,-500.0,0.0001703,2]
[393931791,1763104234307,-500.0,0.0001703,2]
[393931792,1763104234316,-500.0,0.0001703,2]
[393931793,1763104234326,-165.48072985,0.0001703,2]
[393931794,1763104234335,-578.0,0.0001703,2]
[393931795,1763104234346,-500.0,0.0001703,2]
[393931796,1763104234355,-150.0,0.0001703,2]
[393931797,1763104234365,-500.0,0.0001703,2]
[393931798,1763104234374,-150.0,0.0001703,2]
[393931799,1763104234383,-500.0,0.0001703,2]
[393931800,1763104234393,-165.30555299,0.0001703,2]
[393931801,1763104234402,-500.0,0.0001703,2]
[393931802,1763104234411,-626.97838224,0.00017031,2]
[393931803,1763104234421,-525.0,0.00017035,2]
[393931804,1763104234430,-599.0,0.00017035,2]
[393931805,1763104234439,-569.97896579,0.00017042,2]
[393931806,1763104234449,-500.0,0.00017042,2]
[393931807,1763104234457,-500.0,0.00017042,2]
[393931808,1763104234467,-187.33636118,0.00017055,2]
[393931809,1763104234476,-500.0,0.00017055,2]
[393931810,1763104234485,-500.0,0.00017055,2]
[393931811,1763104234494,-686.0,0.00017055,2]
[393931812,1763104234503,-161.28848318,0.00017055,2]
[393931813,1763104234513,-500.0,0.00017055,2]
[393931814,1763104234523,-1860.0,0.00017055,2]
[393931815,1763104234532,-500.0,0.00017057,2]
[393931816,1763104234542,-521.8512548,0.00017057,2]
[393931817,1763104234552,-326.42229768,0.00017057,2]
[393931818,1763104234561,-155.18064126,0.00017057,2]
[393931819,1763104234571,-614.4734072,0.00017057,2]
[393931820,1763104234580,-150.0,0.00017057,2]
[393931821,1763104234589,-500.0,0.00017057,2]
[393931822,1763104234599,-452.82249942,0.00017057,2]
[393931823,1763104234608,-150.0,0.00017057,2]
[393931824,1763104234617,-500.0,0.00017057,2]
[393931825,1763104234627,-500.0,0.00017057,2]
[393931826,1763104234636,-500.0,0.00017057,2]
[393931827,1763104234645,-578.0,0.00017057,2]
[393931828,1763104234655,-500.0,0.00017057,2]
[393931829,1763104234665,-150.0,0.00017057,2]
[393931830,1763104234675,-500.0,0.00017057,2]
[393931831,1763104234685,-211.66522865,0.00017057,2]
[393931832,1763104234694,-500.0,0.00017057,2]
[393931833,1763104234704,-500.0,0.00017057,2]
[393931834,1763104234714,-230.0,0.00017061,2]
[393931835,1763104234723,-525.0,0.00017062,2]
[393931836,1763104234734,-599.0,0.00017062,2]
[393931837,1763104234744,-500.0,0.00017069,2]
[393931838,1763104234754,-500.0,0.00017069,2]
[393931839,1763104234764,-500.0,0.00017073,2]
[393931840,1763104234774,-171.31783739,0.00017073,2]
[393931841,1763104234784,-184.74437325,0.00017073,2]
[393931842,1763104234793,-501.0816036,0.00017073,2]
[393931843,1763104234803,-500.0,0.00017073,2]
[393931844,1763104234815,-364.23750904,0.00017073,2]
[393931845,1763104234825,-364.16950107,0.00017073,2]
[393931846,1763104234837,-503.57835272,0.00017073,2]
[393931847,1763104234847,-507.23583524,0.00017073,2]
[393931848,1763104234858,-500.0,0.00017073,2]
[393931849,1763104234868,-502.72537723,0.00017073,2]
[393931850,1763104234878,-502.33310473,0.00017073,2]
[393931851,1763104234887,-502.15924823,0.00017073,2]
[393931852,1763104234897,-535.87878682,0.00017073,2]
[393931853,1763104234907,-512.82488475,0.00017073,2]
[393931854,1763104234916,-342.82540376,0.00017073,2]
[393931855,1763104234926,-3280.98896011,0.00017082,2]
[393931856,1763104235288,-329.14926267,0.00017082,2]
[393931857,1763104235300,-509.80690701,0.00017082,2]
[393931858,1763104235310,-500.0,0.00017083,2]
[393931859,1763104235320,-500.0,0.00017083,2]
[393931860,1763104235329,-686.0,0.00017083,2]
[393931861,1763104235339,-500.0,0.00017083,2]
[393931862,1763104235349,-510.59309298,0.00017083,2]
[393931863,1763104235366,-1349.40690702,0.00017083,2]
[393931864,1763104235376,-272.73712267,0.00017085,2]
[393931865,1763104235385,-500.0,0.00017085,2]
[393931866,1763104235394,-163.12904844,0.00017085,2]
[393931867,1763104235403,-202.5373284,0.00017085,2]
[393931868,1763104235413,-334.90884767,0.00017085,2]
[393931869,1763104235422,-500.0,0.00017085,2]
[393931870,1763104235431,-578.0,0.00017085,2]
[393931871,1763104235441,-500.0,0.00017085,2]
[393931872,1763104235451,-150.0,0.00017085,2]
[393931873,1763104235460,-500.0,0.00017085,2]
[393931874,1763104235470,-500.0,0.00017085,2]
[393931875,1763104235479,-500.0,0.00017085,2]
[393931876,1763104235488,-151.069191,0.00017085,2]
[393931877,1763104235496,-151.0,0.00017085,2]
[393931878,1763104235505,-151.0,0.00017085,2]
[393931879,1763104235517,-152.607527,0.00017089,2]
[393931880,1763104235527,-153.012916,0.00017089,2]
[393931881,1763104235536,-156.711489,0.00017089,2]
[393931882,1763104235545,-151.0,0.00017089,2]
[393931883,1763104235555,-151.0,0.00017089,2]
[393931884,1763104235564,-151.0,0.00017089,2]
[393931885,1763104235574,-151.0,0.00017089,2]
[393931886,1763104235584,-161.007965,0.00017089,2]
[393931887,1763104235593,-151.958183,0.00017089,2]
[393931888,1763104235603,-206.282403,0.00017089,2]
[393931889,1763104235612,-161.942783,0.00017089,2]
[393931890,1763104235621,-161.942783,0.00017089,2]
[393931891,1763104235631,-161.942783,0.00017089,2]
[393931892,1763104235640,-161.942783,0.00017089,2]
[393931893,1763104235649,-4013.85620341,0.00017089,2]
[393931894,1763104235659,-525.0,0.0001709,2]
[393931895,1763104235668,-599.0,0.0001709,2]
[393931896,1763104235677,-405.74393,0.0001709,2]
[393931897,1763104235685,-28213.41469787,0.00017096,2]
[393931898,1763104235695,-500.0,0.00017096,2]
[393931899,1763104235704,-500.0,0.00017096,2]
[393931900,1763104235713,-150.0,0.000171,2]
[393931901,1763104235722,-230.0,0.00017107,2]
[393931902,1763104235731,-500.0,0.0001711,2]
[393931903,1763104235740,-500.0,0.0001711,2]
[393931904,1763104235749,-686.0,0.0001711,2]
[393931905,1763104235758,-500.0,0.0001711,2]
[393931906,1763104235769,-1860.0,0.0001711,2]
[393931907,1763104235780,-286.09250165,0.00017112,2]
[393931908,1763104235790,-580.69860132,0.00017112,2]
[393931909,1763104235799,-578.0,0.00017112,2]
[393931910,1763104235809,-225.08495472,0.00017112,2]
[393931911,1763104235818,-161.57480564,0.00017112,2]
[393931912,1763104235827,-500.0,0.00017112,2]
[393931913,1763104235836,-500.0,0.00017112,2]
[393931914,1763104235846,-500.0,0.00017112,2]
[393931915,1763104235855,-525.0,0.00017117,2]
[393931916,1763104235864,-599.0,0.00017117,2]
[393931917,1763104235874,-500.0,0.00017124,2]
[393931918,1763104235884,-500.0,0.00017124,2]
[393931919,1763104235893,-500.0,0.00017137,2]
[393931920,1763104235902,-500.0,0.00017137,2]
[393931921,1763104235911,-686.0,0.00017137,2]